[Event "Early-Titled-Tuesday-Blitz-May-07-2024"]
[Site "Chess.com"]
[Date "2024.05.07"]
[Round "7"]
[White "CSB7"]
[Black "TrompeterImEther"]
[Result "1/2-1/2"]
[WhiteElo "2770"]
[BlackElo "2603"]
[TimeControl "180+1"]
[EndTime "9:23:15 PDT"]
[Termination "Game drawn - insufficient material"]

1. Nf3 {[%clk 0:03:00.9]} 1... Nf6 {[%clk 0:03:00]} 2. d4 {[%clk 0:03:01.3]}
2... g6 {[%clk 0:02:59.7]} 3. Bg5 {[%clk 0:02:54.6]} 3... Bg7 {[%clk 0:02:59.5]}
4. Nbd2 {[%clk 0:02:55.1]} 4... c5 {[%clk 0:02:56.5]} 5. dxc5 {[%clk 0:02:44.7]}
5... Na6 {[%clk 0:02:47]} 6. e4 {[%clk 0:02:00.1]} 6... Nxc5 {[%clk 0:02:44.5]}
7. e5 {[%clk 0:01:59.6]} 7... Nfe4 {[%clk 0:02:38.3]} 8. Nxe4 {[%clk 0:01:59.3]}
8... Nxe4 {[%clk 0:02:37.2]} 9. Be3 {[%clk 0:01:59.3]} 9... d5 {[%clk
0:02:34.2]} 10. Qd4 {[%clk 0:01:29.8]} 10... O-O {[%clk 0:02:27.7]} 11. O-O-O
{[%clk 0:01:29]} 11... e6 {[%clk 0:02:26.2]} 12. Bd3 {[%clk 0:01:06]} 12... f5
{[%clk 0:02:23.5]} 13. Bxe4 {[%clk 0:00:58.2]} 13... fxe4 {[%clk 0:02:21.3]} 14.
Nd2 {[%clk 0:00:58.8]} 14... Qc7 {[%clk 0:02:17.9]} 15. f4 {[%clk 0:00:57.3]}
15... exf3 {[%clk 0:02:17.7]} 16. Nxf3 {[%clk 0:00:57.1]} 16... Bd7 {[%clk
0:02:18.1]} 17. Kb1 {[%clk 0:00:53.3]} 17... Rac8 {[%clk 0:02:16.8]} 18. c3
{[%clk 0:00:44.6]} 18... Bb5 {[%clk 0:02:12.9]} 19. Rde1 {[%clk 0:00:31.2]}
19... b6 {[%clk 0:02:02.1]} 20. h4 {[%clk 0:00:30.9]} 20... Qc4 {[%clk
0:01:56.5]} 21. h5 {[%clk 0:00:29.7]} 21... Qxd4 {[%clk 0:01:55.9]} 22. Nxd4
{[%clk 0:00:25]} 22... Bd3+ {[%clk 0:01:55.4]} 23. Ka1 {[%clk 0:00:25.1]} 23...
Rce8 {[%clk 0:01:54.8]} 24. hxg6 {[%clk 0:00:19.2]} 24... Bxg6 {[%clk
0:01:51.6]} 25. g3 {[%clk 0:00:14]} 25... Rf7 {[%clk 0:01:45.5]} 26. Bf4 {[%clk
0:00:13.7]} 26... Be4 {[%clk 0:01:37.3]} 27. Rh2 {[%clk 0:00:13.2]} 27... Kf8
{[%clk 0:01:24]} 28. Nb5 {[%clk 0:00:13]} 28... Rd7 {[%clk 0:01:17.6]} 29. Nd6
{[%clk 0:00:13.1]} 29... Rxd6 {[%clk 0:01:17]} 30. exd6 {[%clk 0:00:13]} 30...
Rd8 {[%clk 0:01:09.7]} 31. a3 {[%clk 0:00:05]} 31... e5 {[%clk 0:01:08.1]} 32.
Bg5 {[%clk 0:00:04.9]} 32... Rxd6 {[%clk 0:01:08.5]} 33. Rf2+ {[%clk 0:00:05.6]}
33... Ke8 {[%clk 0:01:07.3]} 34. Ref1 {[%clk 0:00:05.8]} 34... Bg6 {[%clk
0:01:06.7]} 35. Be3 {[%clk 0:00:04.7]} 35... d4 {[%clk 0:01:04.2]} 36. cxd4
{[%clk 0:00:05.6]} 36... exd4 {[%clk 0:01:05.1]} 37. Bf4 {[%clk 0:00:06]} 37...
Re6 {[%clk 0:01:02.4]} 38. Rd2 {[%clk 0:00:06.2]} 38... Kd7 {[%clk 0:01:01.7]}
39. Rfd1 {[%clk 0:00:04.6]} 39... Re4 {[%clk 0:01:00.8]} 40. Rc1 {[%clk
0:00:03.3]} 40... Ke6 {[%clk 0:00:45.5]} 41. Rc6+ {[%clk 0:00:03.4]} 41... Kf5
{[%clk 0:00:43.5]} 42. Rc1 {[%clk 0:00:02.6]} 42... Kg4 {[%clk 0:00:42.3]} 43.
Ka2 {[%clk 0:00:03]} 43... h5 {[%clk 0:00:40.6]} 44. Rh1 {[%clk 0:00:02.3]}
44... Bf6 {[%clk 0:00:39.9]} 45. Bb8 {[%clk 0:00:02.5]} 45... a6 {[%clk
0:00:37.4]} 46. Ba7 {[%clk 0:00:02.9]} 46... b5 {[%clk 0:00:37.8]} 47. Rhd1
{[%clk 0:00:02.7]} 47... Bf7+ {[%clk 0:00:35.8]} 48. Ka1 {[%clk 0:00:02.6]}
48... Bb3 {[%clk 0:00:35.5]} 49. Bxd4 {[%clk 0:00:02.5]} 49... Bxd1 {[%clk
0:00:34.1]} 50. Bxf6 {[%clk 0:00:03.1]} 50... Bb3 {[%clk 0:00:33.5]} 51. Rd4
{[%clk 0:00:00.8]} 51... Rxd4 {[%clk 0:00:32.6]} 52. Bxd4 {[%clk 0:00:01.7]}
52... Kxg3 {[%clk 0:00:33.3]} 53. Be5+ {[%clk 0:00:02.2]} 53... Kg4 {[%clk
0:00:32.4]} 54. Kb1 {[%clk 0:00:03.1]} 54... h4 {[%clk 0:00:32.5]} 55. Kc1
{[%clk 0:00:04]} 55... h3 {[%clk 0:00:33.1]} 56. Kd2 {[%clk 0:00:04.4]} 56...
Kf3 {[%clk 0:00:33.7]} 57. Kc3 {[%clk 0:00:04.8]} 57... Be6 {[%clk 0:00:32.2]}
58. Kb4 {[%clk 0:00:05.2]} 58... Bc8 {[%clk 0:00:30.8]} 59. a4 {[%clk
0:00:05.2]} 59... Bd7 {[%clk 0:00:27.9]} 60. Ka5 {[%clk 0:00:05.4]} 60... bxa4
{[%clk 0:00:24.6]} 61. Kxa6 {[%clk 0:00:05.4]} 61... Ke4 {[%clk 0:00:20.5]} 62.
Bh2 {[%clk 0:00:03.9]} 62... Kd3 {[%clk 0:00:20.9]} 63. Ka5 {[%clk 0:00:04.3]}
63... Kc4 {[%clk 0:00:21.4]} 64. Be5 {[%clk 0:00:03.9]} 64... Kb3 {[%clk
0:00:21.6]} 65. Kb6 {[%clk 0:00:03.5]} 65... Be8 {[%clk 0:00:16.4]} 66. Kc5
{[%clk 0:00:03.6]} 66... Bd7 {[%clk 0:00:14.8]} 67. Kb6 {[%clk 0:00:03.6]} 67...
Kc2 {[%clk 0:00:12.6]} 68. Kc5 {[%clk 0:00:03.3]} 68... Kd3 {[%clk 0:00:11.9]}
69. Kb4 {[%clk 0:00:03.5]} 69... Ke2 {[%clk 0:00:11.8]} 70. b3 {[%clk
0:00:02.5]} 70... axb3 {[%clk 0:00:10.2]} 71. Kxb3 {[%clk 0:00:03.4]} 71... Kf3
{[%clk 0:00:10.6]} 72. Bb8 {[%clk 0:00:03.6]} 72... Kg2 {[%clk 0:00:11.5]} 73.
Bc7 {[%clk 0:00:04.1]} 73... h2 {[%clk 0:00:12.4]} 74. Bxh2 {[%clk 0:00:04.4]}
1/2-1/2

[Event "Early-Titled-Tuesday-Blitz-May-07-2024"]
[Site "Chess.com"]
[Date "2024.05.07"]
[Round "7"]
[White "Rodalquilar"]
[Black "yaguigor"]
[Result "1/2-1/2"]
[WhiteElo "2735"]
[BlackElo "2584"]
[TimeControl "180+1"]
[EndTime "9:23:23 PDT"]
[Termination "Game drawn by repetition"]

1. d4 {[%clk 0:03:00.9]} 1... d5 {[%clk 0:02:56.8]} 2. Nf3 {[%clk 0:03:01.2]}
2... Nf6 {[%clk 0:02:55.9]} 3. Bf4 {[%clk 0:03:01.3]} 3... c5 {[%clk 0:02:54.6]}
4. e3 {[%clk 0:03:01.7]} 4... Nc6 {[%clk 0:02:53.2]} 5. c3 {[%clk 0:03:02]} 5...
Bf5 {[%clk 0:02:50.7]} 6. dxc5 {[%clk 0:03:01.6]} 6... Nh5 {[%clk 0:02:32.6]} 7.
Nd4 {[%clk 0:02:24.8]} 7... Bxb1 {[%clk 0:02:18.1]} 8. Qxh5 {[%clk 0:01:58.4]}
8... Bg6 {[%clk 0:02:15.8]} 9. Qf3 {[%clk 0:01:46.3]} 9... e6 {[%clk 0:02:15.1]}
10. Bb5 {[%clk 0:01:41.3]} 10... a6 {[%clk 0:02:07.8]} 11. Bxc6+ {[%clk
0:01:07]} 11... bxc6 {[%clk 0:02:06.5]} 12. Nxc6 {[%clk 0:01:07.9]} 12... Qc8
{[%clk 0:02:06.1]} 13. Ne5 {[%clk 0:00:58.3]} 13... Bxc5 {[%clk 0:01:51]} 14.
Nxg6 {[%clk 0:00:57.8]} 14... hxg6 {[%clk 0:01:51.3]} 15. O-O {[%clk 0:00:53.9]}
15... O-O {[%clk 0:01:50.1]} 16. Rfd1 {[%clk 0:00:46.4]} 16... Rd8 {[%clk
0:01:46.8]} 17. Rac1 {[%clk 0:00:45.1]} 17... Qb7 {[%clk 0:01:33.6]} 18. b3
{[%clk 0:00:44.6]} 18... Ba3 {[%clk 0:01:31.7]} 19. Rc2 {[%clk 0:00:45.1]} 19...
Qb6 {[%clk 0:01:29.4]} 20. h4 {[%clk 0:00:32.5]} 20... Rac8 {[%clk 0:01:20.5]}
21. h5 {[%clk 0:00:26.9]} 21... gxh5 {[%clk 0:01:19.6]} 22. Qxh5 {[%clk
0:00:27.8]} 22... a5 {[%clk 0:01:10.9]} 23. Qg4 {[%clk 0:00:24.4]} 23... Bd6
{[%clk 0:00:39.8]} 24. Bh6 {[%clk 0:00:15.4]} 24... Be5 {[%clk 0:00:36.6]} 25.
Bg5 {[%clk 0:00:13.1]} 25... Rd6 {[%clk 0:00:34.1]} 26. c4 {[%clk 0:00:11.9]}
26... Rdc6 {[%clk 0:00:31.5]} 27. Rcd2 {[%clk 0:00:09.1]} 27... f6 {[%clk
0:00:25.8]} 28. cxd5 {[%clk 0:00:07.3]} 28... Rc1 {[%clk 0:00:24.4]} 29. Bf4
{[%clk 0:00:04]} 29... Rxd1+ {[%clk 0:00:21.8]} 30. Rxd1 {[%clk 0:00:04.5]}
30... Bxf4 {[%clk 0:00:21.6]} 31. exf4 {[%clk 0:00:03.4]} 31... Rd8 {[%clk
0:00:19.3]} 32. dxe6 {[%clk 0:00:02.4]} 32... Rxd1+ {[%clk 0:00:18.8]} 33. Qxd1
{[%clk 0:00:03.3]} 33... Qxe6 {[%clk 0:00:19.2]} 34. Qd2 {[%clk 0:00:03.9]}
34... Qb6 {[%clk 0:00:17.1]} 35. Kf1 {[%clk 0:00:03.9]} 35... a4 {[%clk
0:00:14.2]} 36. bxa4 {[%clk 0:00:02.8]} 36... Qa6+ {[%clk 0:00:14.1]} 37. Ke1
{[%clk 0:00:03.4]} 37... Qxa4 {[%clk 0:00:14.4]} 38. g3 {[%clk 0:00:04]} 38...
Kh7 {[%clk 0:00:11.9]} 39. Ke2 {[%clk 0:00:04.3]} 39... g6 {[%clk 0:00:09.6]}
40. Ke3 {[%clk 0:00:04.3]} 40... Qa3+ {[%clk 0:00:08.8]} 41. Ke2 {[%clk
0:00:04]} 41... Qa6+ {[%clk 0:00:07.9]} 42. Kd1 {[%clk 0:00:03.6]} 42... Qc4
{[%clk 0:00:06.3]} 43. Qc2 {[%clk 0:00:03.2]} 43... Qf1+ {[%clk 0:00:05.7]} 44.
Kd2 {[%clk 0:00:02.1]} 44... Qxf2+ {[%clk 0:00:06.4]} 45. Kc1 {[%clk 0:00:02.7]}
45... Qxg3 {[%clk 0:00:05.4]} 46. Qd2 {[%clk 0:00:03]} 46... Qg1+ {[%clk
0:00:04.2]} 47. Kb2 {[%clk 0:00:03.1]} 47... Qb6+ {[%clk 0:00:04.7]} 48. Kc2
{[%clk 0:00:03.6]} 48... Qc6+ {[%clk 0:00:04.5]} 49. Kb3 {[%clk 0:00:04]} 49...
Qe6+ {[%clk 0:00:03.4]} 50. Kb4 {[%clk 0:00:02.6]} 50... Qb6+ {[%clk 0:00:03.2]}
51. Kc4 {[%clk 0:00:02.5]} 51... Qc6+ {[%clk 0:00:03]} 52. Kb4 {[%clk
0:00:02.9]} 52... Qb6+ {[%clk 0:00:03.2]} 53. Ka4 {[%clk 0:00:02.3]} 53... Qc6+
{[%clk 0:00:03.1]} 54. Kb3 {[%clk 0:00:02.7]} 54... Qb6+ {[%clk 0:00:02.7]} 55.
Kc2 {[%clk 0:00:02.4]} 55... Qc5+ {[%clk 0:00:02.4]} 56. Kd1 {[%clk 0:00:02.5]}
56... Qb5 {[%clk 0:00:02.1]} 57. Qc2 {[%clk 0:00:02]} 57... Qf1+ {[%clk
0:00:01.5]} 58. Kd2 {[%clk 0:00:02.6]} 58... Qxf4+ {[%clk 0:00:02.4]} 59. Ke1
{[%clk 0:00:03.5]} 59... Qg3+ {[%clk 0:00:02.4]} 60. Kf1 {[%clk 0:00:03.6]}
60... Qf3+ {[%clk 0:00:02.4]} 61. Kg1 {[%clk 0:00:03.9]} 61... Qe3+ {[%clk
0:00:02.5]} 62. Kf1 {[%clk 0:00:04.4]} 62... Qf3+ {[%clk 0:00:02.8]} 63. Kg1
{[%clk 0:00:04.8]} 63... Qe3+ {[%clk 0:00:03.5]} 64. Kf1 {[%clk 0:00:05.4]}
64... Qf3+ {[%clk 0:00:03.9]} 1/2-1/2

[Event "Early-Titled-Tuesday-Blitz-May-07-2024"]
[Site "Chess.com"]
[Date "2024.05.07"]
[Round "7"]
[White "TigrVShlyape"]
[Black "ravengelic"]
[Result "1/2-1/2"]
[WhiteElo "2937"]
[BlackElo "2666"]
[TimeControl "180+1"]
[EndTime "9:23:24 PDT"]
[Termination "Game drawn - insufficient material"]

1. e4 {[%clk 0:02:57.7]} 1... c5 {[%clk 0:02:59.7]} 2. Nf3 {[%clk 0:02:57]} 2...
g6 {[%clk 0:03:00.2]} 3. c4 {[%clk 0:02:56.7]} 3... Bg7 {[%clk 0:02:59.8]} 4. d4
{[%clk 0:02:57.1]} 4... cxd4 {[%clk 0:03:00.7]} 5. Nxd4 {[%clk 0:02:57.4]} 5...
Nc6 {[%clk 0:03:01.4]} 6. Be3 {[%clk 0:02:57.7]} 6... d6 {[%clk 0:03:01.9]} 7.
Nc3 {[%clk 0:02:57.3]} 7... Nf6 {[%clk 0:03:02.4]} 8. Be2 {[%clk 0:02:57.7]}
8... O-O {[%clk 0:03:03]} 9. O-O {[%clk 0:02:58]} 9... Bd7 {[%clk 0:03:03.2]}
10. Qd2 {[%clk 0:02:56.3]} 10... Nxd4 {[%clk 0:03:03.2]} 11. Bxd4 {[%clk
0:02:56.1]} 11... Bc6 {[%clk 0:03:04.1]} 12. Bd3 {[%clk 0:02:52.5]} 12... a5
{[%clk 0:03:02.9]} 13. b3 {[%clk 0:02:50.3]} 13... Nd7 {[%clk 0:03:02.5]} 14.
Bxg7 {[%clk 0:02:49]} 14... Kxg7 {[%clk 0:03:03.4]} 15. Rab1 {[%clk 0:02:40.3]}
15... Nc5 {[%clk 0:03:01.8]} 16. f4 {[%clk 0:02:37.9]} 16... f6 {[%clk
0:02:51.1]} 17. Kh1 {[%clk 0:02:33.5]} 17... Qb6 {[%clk 0:02:35.3]} 18. Nd5
{[%clk 0:02:25.7]} 18... Bxd5 {[%clk 0:02:23.3]} 19. exd5 {[%clk 0:02:25.3]}
19... Rae8 {[%clk 0:02:23.8]} 20. Bc2 {[%clk 0:02:22.6]} 20... e5 {[%clk
0:02:19.3]} 21. dxe6 {[%clk 0:02:22.1]} 21... Rxe6 {[%clk 0:02:17.4]} 22. f5
{[%clk 0:02:22.1]} 22... Re5 {[%clk 0:02:16.4]} 23. Rbd1 {[%clk 0:02:20.6]}
23... Rfe8 {[%clk 0:02:07.1]} 24. fxg6 {[%clk 0:02:18.9]} 24... hxg6 {[%clk
0:02:07.2]} 25. Qxd6 {[%clk 0:01:42.3]} 25... Qxd6 {[%clk 0:02:08.1]} 26. Rxd6
{[%clk 0:01:42.2]} 26... Re2 {[%clk 0:02:02.7]} 27. Bb1 {[%clk 0:01:40.3]} 27...
Re1 {[%clk 0:01:56.4]} 28. Kg1 {[%clk 0:01:39.6]} 28... f5 {[%clk 0:01:47.8]}
29. Rd1 {[%clk 0:01:37.8]} 29... R1e2 {[%clk 0:01:47.8]} 30. Rf2 {[%clk
0:01:31.7]} 30... Re1+ {[%clk 0:01:47.1]} 31. Rxe1 {[%clk 0:01:30.8]} 31...
Rxe1+ {[%clk 0:01:46.6]} 32. Rf1 {[%clk 0:01:31.4]} 32... Re2 {[%clk 0:01:47.1]}
33. Rc1 {[%clk 0:01:29.8]} 33... Rb2 {[%clk 0:01:46.3]} 34. Rf1 {[%clk 0:01:20]}
34... Kh6 {[%clk 0:01:44.1]} 35. h3 {[%clk 0:01:17.7]} 35... Kg5 {[%clk
0:01:43.8]} 36. Re1 {[%clk 0:01:14.3]} 36... Kf4 {[%clk 0:01:40.7]} 37. Kh2
{[%clk 0:01:11.6]} 37... Kg5 {[%clk 0:01:36.7]} 38. Kg3 {[%clk 0:01:11.1]} 38...
Na6 {[%clk 0:01:31.1]} 39. h4+ {[%clk 0:01:09.4]} 39... Kf6 {[%clk 0:01:30.6]}
40. Kf3 {[%clk 0:01:05.8]} 40... Nc5 {[%clk 0:01:24.4]} 41. g4 {[%clk
0:01:05.1]} 41... Ne6 {[%clk 0:01:13.3]} 42. gxf5 {[%clk 0:01:01.2]} 42... gxf5
{[%clk 0:01:14.2]} 43. Ke3 {[%clk 0:00:54.2]} 43... Rh2 {[%clk 0:01:11.8]} 44.
Rf1 {[%clk 0:00:53.6]} 44... Rh3+ {[%clk 0:01:09.1]} 45. Rf3 {[%clk 0:00:52.6]}
45... f4+ {[%clk 0:01:09.3]} 46. Ke4 {[%clk 0:00:46.8]} 46... Rxh4 {[%clk
0:01:09.7]} 47. Kd5 {[%clk 0:00:43.2]} 47... Ng5 {[%clk 0:01:08.6]} 48. Rf1
{[%clk 0:00:41.8]} 48... f3 {[%clk 0:01:07.4]} 49. Kc5 {[%clk 0:00:40.5]} 49...
Ke5 {[%clk 0:01:01.7]} 50. Kb6 {[%clk 0:00:40]} 50... Kd4 {[%clk 0:00:52.1]} 51.
Kxb7 {[%clk 0:00:36.7]} 51... Kc5 {[%clk 0:00:52.2]} 52. Ka6 {[%clk 0:00:30.5]}
52... Kb4 {[%clk 0:00:45.3]} 53. Bc2 {[%clk 0:00:27.4]} 53... Rh2 {[%clk
0:00:44.6]} 54. Bd1 {[%clk 0:00:25.4]} 54... f2 {[%clk 0:00:44.8]} 55. c5 {[%clk
0:00:23.9]} 55... Kxc5 {[%clk 0:00:44.5]} 56. Kxa5 {[%clk 0:00:22.3]} 56... Ne4
{[%clk 0:00:43]} 57. b4+ {[%clk 0:00:22.4]} 57... Kd4 {[%clk 0:00:43.5]} 58. Be2
{[%clk 0:00:22.6]} 58... Ng3 {[%clk 0:00:40.7]} 59. Rd1+ {[%clk 0:00:22.7]}
59... Ke3 {[%clk 0:00:41.2]} 60. Bc4 {[%clk 0:00:22.1]} 60... Rh4 {[%clk
0:00:37.6]} 61. Ba6 {[%clk 0:00:17.3]} 61... Ne2 {[%clk 0:00:17.7]} 62. Bxe2
{[%clk 0:00:15.4]} 62... Kxe2 {[%clk 0:00:17.8]} 63. Rb1 {[%clk 0:00:15.7]}
63... Rd4 {[%clk 0:00:15.3]} 64. b5 {[%clk 0:00:15.7]} 64... Rd1 {[%clk
0:00:15]} 65. Rb2+ {[%clk 0:00:15.4]} 65... Rd2 {[%clk 0:00:15.4]} 66. Rb1
{[%clk 0:00:15.6]} 66... Rxa2+ {[%clk 0:00:15.5]} 67. Kb4 {[%clk 0:00:15]} 67...
f1=Q {[%clk 0:00:10.5]} 68. Rxf1 {[%clk 0:00:14.5]} 68... Kxf1 {[%clk
0:00:11.4]} 69. b6 {[%clk 0:00:14.9]} 69... Ke2 {[%clk 0:00:11.6]} 70. Kc5
{[%clk 0:00:15.3]} 70... Kd3 {[%clk 0:00:11.5]} 71. b7 {[%clk 0:00:15.6]} 71...
Rb2 {[%clk 0:00:11.6]} 72. Kc6 {[%clk 0:00:16.1]} 72... Kc4 {[%clk 0:00:10.2]}
73. Kc7 {[%clk 0:00:16.5]} 73... Rxb7+ {[%clk 0:00:09.9]} 74. Kxb7 {[%clk
0:00:16.2]} 1/2-1/2

[Event "Early-Titled-Tuesday-Blitz-May-07-2024"]
[Site "Chess.com"]
[Date "2024.05.07"]
[Round "7"]
[White "MFatigue"]
[Black "Yaacovn"]
[Result "1/2-1/2"]
[WhiteElo "2522"]
[BlackElo "2849"]
[TimeControl "180+1"]
[EndTime "9:23:27 PDT"]
[Termination "Game drawn by repetition"]

1. e4 {[%clk 0:03:00.9]} 1... c6 {[%clk 0:02:59.8]} 2. Bc4 {[%clk 0:03:00]} 2...
d5 {[%clk 0:03:00.7]} 3. Bb3 {[%clk 0:03:00.7]} 3... dxe4 {[%clk 0:03:00.8]} 4.
Qh5 {[%clk 0:03:01.4]} 4... g6 {[%clk 0:02:57.6]} 5. Qh4 {[%clk 0:03:01.2]} 5...
Bg7 {[%clk 0:02:56.3]} 6. Nc3 {[%clk 0:03:01.8]} 6... Nf6 {[%clk 0:02:55.4]} 7.
Nxe4 {[%clk 0:03:01.3]} 7... Nxe4 {[%clk 0:02:54.4]} 8. Qxe4 {[%clk 0:03:02.2]}
8... Nd7 {[%clk 0:02:54.8]} 9. d4 {[%clk 0:03:02]} 9... e5 {[%clk 0:02:38.8]}
10. dxe5 {[%clk 0:02:48]} 10... Nc5 {[%clk 0:02:27.7]} 11. Qe2 {[%clk
0:02:39.7]} 11... Nxb3 {[%clk 0:02:25.9]} 12. axb3 {[%clk 0:02:39.6]} 12... O-O
{[%clk 0:02:15.9]} 13. Nf3 {[%clk 0:02:39.8]} 13... Bg4 {[%clk 0:02:14.5]} 14.
Bf4 {[%clk 0:02:23.5]} 14... Re8 {[%clk 0:02:04.5]} 15. O-O {[%clk 0:02:16]}
15... Qd7 {[%clk 0:01:48.9]} 16. Rfe1 {[%clk 0:02:13.2]} 16... Qf5 {[%clk
0:01:44.1]} 17. Bg3 {[%clk 0:01:41.9]} 17... a6 {[%clk 0:01:29.1]} 18. Ra4
{[%clk 0:01:33]} 18... Bxf3 {[%clk 0:01:24.9]} 19. gxf3 {[%clk 0:01:32]} 19...
Rad8 {[%clk 0:01:23.3]} 20. Re4 {[%clk 0:01:25.3]} 20... Rd5 {[%clk 0:01:16.5]}
21. Kg2 {[%clk 0:01:17.7]} 21... Qe6 {[%clk 0:01:01.1]} 22. Rd1 {[%clk
0:01:08.9]} 22... Red8 {[%clk 0:00:56]} 23. Rxd5 {[%clk 0:01:05.2]} 23... Rxd5
{[%clk 0:00:56.9]} 24. h4 {[%clk 0:01:02.2]} 24... h5 {[%clk 0:00:56.8]} 25. Qe3
{[%clk 0:00:43.8]} 25... Kh7 {[%clk 0:00:51.4]} 26. Qe2 {[%clk 0:00:44]} 26...
Bh6 {[%clk 0:00:46.3]} 27. Qc4 {[%clk 0:00:44.2]} 27... Rd2 {[%clk 0:00:38.7]}
28. Qxe6 {[%clk 0:00:30]} 28... fxe6 {[%clk 0:00:38.6]} 29. Rc4 {[%clk
0:00:30.5]} 29... Kg7 {[%clk 0:00:34.1]} 30. Kf1 {[%clk 0:00:30.8]} 30... Rd1+
{[%clk 0:00:30.4]} 31. Ke2 {[%clk 0:00:30.8]} 31... Rd5 {[%clk 0:00:30.3]} 32.
f4 {[%clk 0:00:26.6]} 32... Kf7 {[%clk 0:00:29.6]} 33. f3 {[%clk 0:00:27]} 33...
Ke8 {[%clk 0:00:28.7]} 34. Bf2 {[%clk 0:00:24.9]} 34... Kd7 {[%clk 0:00:28.9]}
35. Be3 {[%clk 0:00:16.3]} 35... Bf8 {[%clk 0:00:25.9]} 36. Rc3 {[%clk
0:00:16.7]} 36... Be7 {[%clk 0:00:26]} 37. Bf2 {[%clk 0:00:16.2]} 37... Bf8
{[%clk 0:00:23.8]} 38. Rd3 {[%clk 0:00:16.6]} 38... Ke8 {[%clk 0:00:23.6]} 39.
Rxd5 {[%clk 0:00:16.8]} 39... cxd5 {[%clk 0:00:22.8]} 40. Kd3 {[%clk 0:00:17.3]}
40... Be7 {[%clk 0:00:22.6]} 41. c4 {[%clk 0:00:16.5]} 41... dxc4+ {[%clk
0:00:22.5]} 42. bxc4 {[%clk 0:00:17.4]} 42... Kd7 {[%clk 0:00:22.8]} 43. Kc3
{[%clk 0:00:15]} 43... Kc6 {[%clk 0:00:22.7]} 44. b3 {[%clk 0:00:15.2]} 44... b5
{[%clk 0:00:22]} 45. Kd3 {[%clk 0:00:14.6]} 45... a5 {[%clk 0:00:20.5]} 46.
cxb5+ {[%clk 0:00:13.7]} 46... Kxb5 {[%clk 0:00:20.6]} 47. Kc3 {[%clk
0:00:14.3]} 47... Bb4+ {[%clk 0:00:20.3]} 48. Kc2 {[%clk 0:00:13.9]} 48... Kc6
{[%clk 0:00:19.5]} 49. Kd3 {[%clk 0:00:11.9]} 49... Kd5 {[%clk 0:00:18.2]} 50.
Bg3 {[%clk 0:00:10.7]} 50... Kc6 {[%clk 0:00:17.6]} 51. Bf2 {[%clk 0:00:11.1]}
51... Kb5 {[%clk 0:00:18]} 52. Bg3 {[%clk 0:00:10.9]} 52... Bc5 {[%clk
0:00:18.5]} 53. Be1 {[%clk 0:00:11]} 53... Bg1 {[%clk 0:00:18.5]} 54. Ke4 {[%clk
0:00:10]} 54... Bh2 {[%clk 0:00:14.8]} 55. Ke3 {[%clk 0:00:07.6]} 55... Bg1+
{[%clk 0:00:14.2]} 56. Ke4 {[%clk 0:00:07.9]} 56... a4 {[%clk 0:00:14.4]} 57.
bxa4+ {[%clk 0:00:07.8]} 57... Kxa4 {[%clk 0:00:15.3]} 58. f5 {[%clk 0:00:04.5]}
58... gxf5+ {[%clk 0:00:07.2]} 59. Kf4 {[%clk 0:00:05.1]} 59... Bd4 {[%clk
0:00:04.6]} 60. Bg3 {[%clk 0:00:04.4]} 60... Kb5 {[%clk 0:00:03.9]} 61. Kg5
{[%clk 0:00:05]} 61... Kc4 {[%clk 0:00:04.7]} 62. Kxh5 {[%clk 0:00:05.4]} 62...
Kd3 {[%clk 0:00:05.5]} 63. Kg6 {[%clk 0:00:04.8]} 63... Ke2 {[%clk 0:00:06.1]}
64. f4 {[%clk 0:00:03.7]} 64... Kf3 {[%clk 0:00:06.5]} 65. Bh2 {[%clk
0:00:03.2]} 65... Kg2 {[%clk 0:00:06.8]} 66. h5 {[%clk 0:00:03.2]} 66... Kxh2
{[%clk 0:00:07.2]} 67. h6 {[%clk 0:00:03.6]} 67... Kg3 {[%clk 0:00:07.9]} 68. h7
{[%clk 0:00:03.2]} 68... Kxf4 {[%clk 0:00:08.5]} 69. h8=Q {[%clk 0:00:03.5]}
69... Bxe5 {[%clk 0:00:09.4]} 70. Qh4+ {[%clk 0:00:02.5]} 70... Ke3 {[%clk
0:00:09.7]} 71. Qe1+ {[%clk 0:00:02.5]} 71... Kd4 {[%clk 0:00:09.8]} 72. Qd2+
{[%clk 0:00:03.1]} 72... Ke4 {[%clk 0:00:10.1]} 73. Qe2+ {[%clk 0:00:03.6]}
73... Kd5 {[%clk 0:00:10.6]} 74. Kf7 {[%clk 0:00:03.8]} 74... f4 {[%clk
0:00:10.3]} 75. Qd3+ {[%clk 0:00:04.3]} 75... Bd4 {[%clk 0:00:10.5]} 76. Qf3+
{[%clk 0:00:04.6]} 76... Ke5 {[%clk 0:00:10.4]} 77. Qe2+ {[%clk 0:00:04.2]}
77... Be3 {[%clk 0:00:11.3]} 78. Qf3 {[%clk 0:00:03.9]} 78... Bd4 {[%clk
0:00:10.2]} 79. Kg6 {[%clk 0:00:03.8]} 79... Be3 {[%clk 0:00:09.9]} 80. Kf7
{[%clk 0:00:03.9]} 80... Bd4 {[%clk 0:00:09.9]} 1/2-1/2